Workbook

Sheet انسولين الهيئة
A1: انسولين الهيئة
A2: اسم الصنف | B2: الوحدة | C2: M1 | E2: M2 | G2: M3 | I2: Total
C3: الكمية | D3: عدد الحالات | E3: الكمية | F3: عدد الحالات | G3: الكمية | H3: عدد الحالات | I3: الكمية | J3: عدد الحالات
A4: انسولين مكستارد 100وحدة | B4: فيال | C4: 0 | D4: 0 | E4: 0 | F4: 0 | G4: 0 | H4: 0 | I4: =C4+E4+G4 -> 0 | J4: =D4+F4+H4 -> 0
A5: انسولين اتش ميكس 100وحدة | B5: فيال | C5: 0 | D5: 0 | E5: 0 | F5: 0 | G5: 0 | H5: 0 | I5: =C5+E5+G5 -> 0 | J5: 0
A6: انسيومان كومب 100وحدة | B6: فيال | C6: 0 | D6: 0 | E6: 0 | F6: 0 | G6: 0 | H6: 0 | I6: 0 | J6: 0
A7: انسولينا جيت 100 وحدة | B7: فيال | C7: 942 | D7: 297 | E7: 619 | F7: 207 | G7: 810 | H7: 270 | I7: 2371 | J7: 774
A8: انسولين لانتوس 100 وحدة | B8: فيال | C8: 176 | D8: 21 | E8: 20 | F8: 5 | G8: 35 | H8: 7 | I8: 231 | J8: 33
A9: انسولين هيمولين 100وحدة | B9: فيال | C9: 0 | D9: 0 | E9: 0 | F9: 0 | G9: 0 | H9: 0 | I9: 0 | J9: 0
A10: انسولين رابيد بنفيل | B10: خرطوشة | C10: 0 | D10: 0 | E10: 0 | F10: 0 | G10: 0 | H10: 0 | I10: 0 | J10: 0
A11: انسولين بازل بنفيل | B11: خرطوشة | C11: 0 | D11: 0 | E11: 0 | F11: 0 | G11: 0 | H11: 0 | I11: 0 | J11: 0
A12: انسولين كومب بنفيل | B12: خرطوشة | C12: 0 | D12: 0 | E12: 0 | F12: 0 | G12: 0 | H12: 0 | I12: 0 | J12: 0
A13: انسولين مكستارد بنفيل | B13: خرطوشة | I13: =C15+E13+G13 -> 0 | J13: =D15+F13+H13 -> 0
A14: انسولين اكترابيد بنفيل | B14: خرطوشة | C14: 43 | D14: 7 | E14: 28 | F14: 3 | G14: 24 | H14: 2 | I14: 95 | J14: 12
A15: انسولين انسوليتارد بنفيل | B15: خرطوشة | C15: 0 | D15: 0 | E15: 0 | F15: 0 | G15: 0 | H15: 0 | I15: 0 | J15: 0
A16: انسولين مكستارد بنفيل | B16: خرطوشة | C16: 344 | D16: 30 | E16: 166 | F16: 14 | G16: 63 | H16: 6 | I16: 573 | J16: 50
I17: 0 | J17: 0
I18: 0 | J18: 0
I19: 0 | J19: 0
I20: 0 | J20: 0
I21: 0 | J21: 0
I22: 0 | J22: 0
I23: 0 | J23: 0
I24: 0 | J24: 0
I25: 0 | J25: 0
I26: 0 | J26: 0

Sheet انسولين الطلاب والرضع
A1: انسولين الطلاب والرضع
A2: اسم الصنف | B2: الوحدة | C2: M1 | E2: M2 | G2: M3 | I2: Total
C3: الكمية | D3: عدد الحالات | E3: الكمية | F3: عدد الحالات | G3: الكمية | H3: عدد الحالات | I3: الكمية | J3: عدد الحالات
A4: انسولين مكستارد 100وحدة | B4: فيال | C4: 0 | D4: 0 | E4: 0 | F4: 0 | G4: 0 | H4: 0 | I4: =C4+E4+G4 -> 0 | J4: =D4+F4+H4 -> 0
A5: انسولين اتش ميكس 100وحدة | B5: فيال | C5: 0 | D5: 0 | E5: 0 | F5: 0 | G5: 0 | H5: 0 | I5: =C5+E5+G5 -> 0 | J5: 0
A6: انسيومان كومب 100وحدة | B6: فيال | C6: 0 | D6: 0 | E6: 0 | F6: 0 | G6: 0 | H6: 0 | I6: 0 | J6: 0
A7: انسولينا جيت 100 وحدة | B7: فيال | C7: 7 | D7: 2 | E7: 17 | F7: 5 | G7: 9 | H7: 3 | I7: 33 | J7: 10
A8: انسولين لانتوس 100 وحدة | B8: فيال | C8: 306 | D8: 87 | E8: 266 | F8: 52 | G8: 239 | H8: 60 | I8: 811 | J8: 199
A9: انسولين هيمولين 100وحدة | B9: فيال | C9: 0 | D9: 0 | E9: 0 | F9: 0 | G9: 0 | H9: 0 | I9: 0 | J9: 0
A10: انسولين رابيد بنفيل | B10: خرطوشة | C10: 0 | D10: 0 | E10: 0 | F10: 0 | G10: 0 | H10: 0 | I10: 0 | J10: 0
A11: انسولين بازل بنفيل | B11: خرطوشة | C11: 0 | D11: 0 | E11: 0 | F11: 0 | G11: 0 | H11: 0 | I11: 0 | J11: 0
A12: انسولين كومب بنفيل | B12: خرطوشة | C12: 0 | D12: 0 | E12: 0 | F12: 0 | G12: 0 | H12: 0 | I12: 0 | J12: 0
A13: انسولين مكستارد بنفيل | B13: خرطوشة | C13: 142 | D13: 14 | E13: 149 | F13: 19 | G13: 72 | H13: 12 | I13: 363 | J13: 45
A14: انسولين اكترابيد بنفيل | B14: خرطوشة | C14: 258 | D14: 35 | E14: 232 | F14: 29 | G14: 306 | H14: 39 | I14: 796 | J14: 103
A15: انسولين انسوليتارد بنفيل | B15: خرطوشة | C15: 15 | D15: 3 | E15: 16 | F15: 2 | G15: 29 | H15: 4 | I15: 60 | J15: 9
I16: 0 | J16: 0
I17: 0 | J17: 0
I18: 0 | J18: 0
I19: 0 | J19: 0
I20: 0 | J20: 0
I21: 0 | J21: 0
I22: 0 | J22: 0
I23: 0 | J23: 0
I24: 0 | J24: 0
I25: 0 | J25: 0
I26: 0 | J26: 0

Sheet الأصناف
A1: الأصناف
A2: اسم الصنف | B2: الوحدة | C2: Statment
C3: الكمية المنصرفة | D3: عدد الحالات | E3: اجمالى التكلفة
A4: هرمون النمو | B4: فيال | C4: 1685 | D4: 123 | E4: 136485
A5: اكسى جاد 125مجم | B5: شريط × 7قرص | C5: 0 | D5: 0 | E5: 0
A6: اكسى جاد 250مجم | B6: شريط × 7قرص | C6: 56 | D6: 4 | E6: 7466.69
A7: اكسى جاد 500مجم | B7: شريط × 7قرص | C7: 50 | D7: 4 | E7: 12916.63
A8: ديسفيرال | B8: فيال | C8: 0 | D8: 0 | E8: 0
A9: فيريبروكس | B9: زجاجة | C9: 0 | D9: 0 | E9: 0
A10: كيلفر | B10: ع×50ك | C10: 0 | D10: 0 | E10: 0
A11: ريبافيرين200مجم | B11: شريط × 6ك | C11: 226 | D11: 16 | E11: 888.18
A12: ريبافيرين400مجم | B12: شريط × 6ك | C12: 0 | D12: 0 | E12: 0
A13: جادينيو90مجم | B13: ش×10ق | C13: 63 | D13: 11 | E13: 6225.03
A14: جادينيو180مجم | B14: ش×10ق | C14: 93 | D14: 23 | E14: 17714.26
A15: جادينيو360مجم | B15: ش×10ق | C15: 135 | D15: 30 | E15: 49821.3
A16: جلينيا | B16: ع×28ق | C16: 1 | D16: 1 | E16: 6900.012
A17: هرمون النمو | B17: فيال | C17: 127 | D17: 6 | E17: 8801.1
A18: جادينيو360مجم | B18: ش×10ق

Sheet تصدير

Sheet تقاريرانسولين الهيئة
B1: بيان بإحصائيات صرف الأنسولين لصيدليات الهيئة عن شهر
A2: م | B2: الصنف | C2: الوحدة | D2: M1 | F2: M2 | H2: M3 | J2: الإجمالى
D3: كمية | E3: عدد حالات | F3: كمية | G3: عدد حالات | H3: كمية | I3: عدد حالات | J3: كمية | K3: عدد حالات
A4: 1 | B4: انسولين مكستارد 100وحدة | C4: فيال | D4: ='انسولين الهيئة'!C4 -> 0 | E4: ='انسولين الهيئة'!D4 -> 0 | F4: ='انسولين الهيئة'!E4 -> 0 | G4: ='انسولين الهيئة'!F4 -> 0 | H4: ='انسولين الهيئة'!G4 -> 0 | I4: ='انسولين الهيئة'!H4 -> 0 | J4: ='انسولين الهيئة'!I4 -> 0 | K4: ='انسولين الهيئة'!J4 -> 0
A5: 2 | B5: انسولين اتش ميكس 100وحدة | C5: فيال | D5: ='انسولين الهيئة'!C5 -> 0 | E5: ='انسولين الهيئة'!D5 -> 0 | F5: ='انسولين الهيئة'!E5 -> 0 | G5: ='انسولين الهيئة'!F5 -> 0 | H5: ='انسولين الهيئة'!G5 -> 0 | I5: ='انسولين الهيئة'!H5 -> 0 | J5: ='انسولين الهيئة'!I5 -> 0 | K5: ='انسولين الهيئة'!J5 -> 0
A6: 3 | B6: انسيومان كومب 100وحدة | C6: فيال | D6: ='انسولين الهيئة'!C6 -> 0 | E6: ='انسولين الهيئة'!D6 -> 0 | F6: ='انسولين الهيئة'!E6 -> 0 | G6: ='انسولين الهيئة'!F6 -> 0 | H6: ='انسولين الهيئة'!G6 -> 0 | I6: ='انسولين الهيئة'!H6 -> 0 | J6: ='انسولين الهيئة'!I6 -> 0 | K6: ='انسولين الهيئة'!J6 -> 0
A7: 4 | B7: انسولينا جيت 100 وحدة | C7: فيال | D7: ='انسولين الهيئة'!C7 -> 942 | E7: ='انسولين الهيئة'!D7 -> 297 | F7: ='انسولين الهيئة'!E7 -> 619 | G7: ='انسولين الهيئة'!F7 -> 207 | H7: ='انسولين الهيئة'!G7 -> 810 | I7: ='انسولين الهيئة'!H7 -> 270 | J7: ='انسولين الهيئة'!I7 -> 2371 | K7: ='انسولين الهيئة'!J7 -> 774
A8: 5 | B8: انسولين لانتوس 100 وحدة | C8: خرطوشة | D8: ='انسولين الهيئة'!C8 -> 176 | E8: ='انسولين الهيئة'!D8 -> 21 | F8: ='انسولين الهيئة'!E8 -> 20 | G8: ='انسولين الهيئة'!F8 -> 5 | H8: ='انسولين الهيئة'!G8 -> 35 | I8: ='انسولين الهيئة'!H8 -> 7 | J8: ='انسولين الهيئة'!I8 -> 231 | K8: ='انسولين الهيئة'!J8 -> 33
A9: 6 | B9: انسولين هيمولين 100وحدة | C9: فيال | D9: ='انسولين الهيئة'!C9 -> 0 | E9: ='انسولين الهيئة'!D9 -> 0 | F9: ='انسولين الهيئة'!E9 -> 0 | G9: ='انسولين الهيئة'!F9 -> 0 | H9: ='انسولين الهيئة'!G9 -> 0 | I9: ='انسولين الهيئة'!H9 -> 0 | J9: ='انسولين الهيئة'!I9 -> 0 | K9: ='انسولين الهيئة'!J9 -> 0
A10: 7 | B10: انسولين رابيد بنفيل | C10: خرطوشة | D10: ='انسولين الهيئة'!C10 -> 0 | E10: ='انسولين الهيئة'!D10 -> 0 | F10: ='انسولين الهيئة'!E10 -> 0 | G10: ='انسولين الهيئة'!F10 -> 0 | H10: ='انسولين الهيئة'!G10 -> 0 | I10: ='انسولين الهيئة'!H10 -> 0 | J10: ='انسولين الهيئة'!I10 -> 0 | K10: ='انسولين الهيئة'!J10 -> 0
A11: 8 | B11: انسولين بازل بنفيل | C11: خرطوشة | D11: ='انسولين الهيئة'!C11 -> 0 | E11: ='انسولين الهيئة'!D11 -> 0 | F11: ='انسولين الهيئة'!E11 -> 0 | G11: ='انسولين الهيئة'!F11 -> 0 | H11: ='انسولين الهيئة'!G11 -> 0 | I11: ='انسولين الهيئة'!H11 -> 0 | J11: ='انسولين الهيئة'!I11 -> 0 | K11: ='انسولين الهيئة'!J11 -> 0
A12: 9 | B12: انسولين كومب بنفيل | C12: خرطوشة | D12: ='انسولين الهيئة'!C12 -> 0 | E12: ='انسولين الهيئة'!D12 -> 0 | F12: ='انسولين الهيئة'!E12 -> 0 | G12: ='انسولين الهيئة'!F12 -> 0 | H12: ='انسولين الهيئة'!G12 -> 0 | I12: ='انسولين الهيئة'!H12 -> 0 | J12: ='انسولين الهيئة'!I12 -> 0 | K12: ='انسولين الهيئة'!J12 -> 0
A13: 10 | B13: انسولين مكستارد بنفيل | C13: خرطوشة | D13: ='انسولين الهيئة'!C13 -> 0 | E13: ='انسولين الهيئة'!D13 -> 0 | F13: ='انسولين الهيئة'!E13 -> 0 | G13: ='انسولين الهيئة'!F13 -> 0 | H13: ='انسولين الهيئة'!G13 -> 0 | I13: ='انسولين الهيئة'!H13 -> 0 | J13: ='انسولين الهيئة'!I13 -> 0 | K13: ='انسولين الهيئة'!J13 -> 0
A14: 11 | B14: انسولين اكترابيد بنفيل | C14: خرطوشة | D14: ='انسولين الهيئة'!C14 -> 43 | E14: ='انسولين الهيئة'!D14 -> 7 | F14: ='انسولين الهيئة'!E14 -> 28 | G14: ='انسولين الهيئة'!F14 -> 3 | H14: ='انسولين الهيئة'!G14 -> 24 | I14: ='انسولين الهيئة'!H14 -> 2 | J14: ='انسولين الهيئة'!I14 -> 95 | K14: ='انسولين الهيئة'!J14 -> 12
A15: 12 | B15: انسولين انسوليتارد بنفيل | C15: خرطوشة | D15: ='انسولين الهيئة'!C15 -> 0 | E15: ='انسولين الهيئة'!D15 -> 0 | F15: ='انسولين الهيئة'!E15 -> 0 | G15: ='انسولين الهيئة'!F15 -> 0 | H15: ='انسولين الهيئة'!G15 -> 0 | I15: ='انسولين الهيئة'!H15 -> 0 | J15: ='انسولين الهيئة'!I15 -> 0 | K15: ='انسولين الهيئة'!J15 -> 0
B16: اجمالى الانسولين فيال وخراطيش | D16: الهلال | F16: منطقة سوهاج | H16: منطقة جرجا | J16: الإجمالى
B17: انسولين 100 وحدة | C17: فيال | D17: =D4+D5+D6+D7+D9 -> 942 | E17: 297 | F17: 619 | G17: 207 | H17: =H4+H5+H6+H7+H9 -> 810 | I17: =I4+I5+I6+I7+I9 -> 270 | J17: =J4+J5+J6+J7+J8+J9 -> 2602 | K17: =K4+K5+K6+K7+K9 -> 774
B18: انسولين بنفل | C18: خرطوشة | D18: =D8+D10+D11+D12+D13+D14+D15 -> 219 | E18: =E8+E10+E11+E12+E13+E14+E15 -> 28 | F18: 48 | G18: 8 | H18: 59 | I18: 9 | J18: =J10+J11+J12+J13+J14+J15 -> 95 | K18: 45

Sheet تقارير انسولين الطلاب والرضع
B1: بيان بإحصائيات صرف الأنسولين لصيدليات الطلاب والرضع عن شهر
A2: م | B2: الصنف | C2: الوحدة | D2: M1 | F2: M2 | H2: M3 | J2: الإجمالى
D3: كمية | E3: عدد حالات | F3: كمية | G3: عدد حالات | H3: كمية | I3: عدد حالات | J3: كمية | K3: عدد حالات
A4: 1 | B4: انسولين مكستارد 100وحدة | C4: فيال | D4: ='انسولين الطلاب والرضع'!C4 -> 0 | E4: ='انسولين الطلاب والرضع'!D4 -> 0 | F4: ='انسولين الطلاب والرضع'!E4 -> 0 | G4: ='انسولين الطلاب والرضع'!F4 -> 0 | H4: ='انسولين الطلاب والرضع'!G4 -> 0 | I4: ='انسولين الطلاب والرضع'!H4 -> 0 | J4: ='انسولين الطلاب والرضع'!I4 -> 0 | K4: ='انسولين الطلاب والرضع'!J4 -> 0
A5: 2 | B5: انسولين اتش ميكس 100وحدة | C5: فيال | D5: ='انسولين الطلاب والرضع'!C5 -> 0 | E5: ='انسولين الطلاب والرضع'!D5 -> 0 | F5: ='انسولين الطلاب والرضع'!E5 -> 0 | G5: ='انسولين الطلاب والرضع'!F5 -> 0 | H5: ='انسولين الطلاب والرضع'!G5 -> 0 | I5: ='انسولين الطلاب والرضع'!H5 -> 0 | J5: ='انسولين الطلاب والرضع'!I5 -> 0 | K5: ='انسولين الطلاب والرضع'!J5 -> 0
A6: 3 | B6: انسيومان كومب 100وحدة | C6: فيال | D6: ='انسولين الطلاب والرضع'!C6 -> 0 | E6: ='انسولين الطلاب والرضع'!D6 -> 0 | F6: ='انسولين الطلاب والرضع'!E6 -> 0 | G6: ='انسولين الطلاب والرضع'!F6 -> 0 | H6: ='انسولين الطلاب والرضع'!G6 -> 0 | I6: ='انسولين الطلاب والرضع'!H6 -> 0 | J6: ='انسولين الطلاب والرضع'!I6 -> 0 | K6: ='انسولين الطلاب والرضع'!J6 -> 0
A7: 4 | B7: انسولينا جيت 100 وحدة | C7: فيال | D7: ='انسولين الطلاب والرضع'!C7 -> 7 | E7: ='انسولين الطلاب والرضع'!D7 -> 2 | F7: ='انسولين الطلاب والرضع'!E7 -> 17 | G7: ='انسولين الطلاب والرضع'!F7 -> 5 | H7: ='انسولين الطلاب والرضع'!G7 -> 9 | I7: ='انسولين الطلاب والرضع'!H7 -> 3 | J7: ='انسولين الطلاب والرضع'!I7 -> 33 | K7: ='انسولين الطلاب والرضع'!J7 -> 10
A8: 5 | B8: انسولين لانتوس 100 وحدة | C8: خرطوشة | D8: ='انسولين الطلاب والرضع'!C8 -> 306 | E8: ='انسولين الطلاب والرضع'!D8 -> 87 | F8: ='انسولين الطلاب والرضع'!E8 -> 266 | G8: ='انسولين الطلاب والرضع'!F8 -> 52 | H8: ='انسولين الطلاب والرضع'!G8 -> 239 | I8: ='انسولين الطلاب والرضع'!H8 -> 60 | J8: ='انسولين الطلاب والرضع'!I8 -> 811 | K8: ='انسولين الطلاب والرضع'!J8 -> 199
A9: 6 | B9: انسولين هيمولين 100وحدة | C9: فيال | D9: ='انسولين الطلاب والرضع'!C9 -> 0 | E9: ='انسولين الطلاب والرضع'!D9 -> 0 | F9: ='انسولين الطلاب والرضع'!E9 -> 0 | G9: ='انسولين الطلاب والرضع'!F9 -> 0 | H9: ='انسولين الطلاب والرضع'!G9 -> 0 | I9: ='انسولين الطلاب والرضع'!H9 -> 0 | J9: ='انسولين الطلاب والرضع'!I9 -> 0 | K9: ='انسولين الطلاب والرضع'!J9 -> 0
A10: 7 | B10: انسولين رابيد بنفيل | C10: خرطوشة | D10: ='انسولين الطلاب والرضع'!C10 -> 0 | E10: ='انسولين الطلاب والرضع'!D10 -> 0 | F10: ='انسولين الطلاب والرضع'!E10 -> 0 | G10: ='انسولين الطلاب والرضع'!F10 -> 0 | H10: ='انسولين الطلاب والرضع'!G10 -> 0 | I10: ='انسولين الطلاب والرضع'!H10 -> 0 | J10: ='انسولين الطلاب والرضع'!I10 -> 0 | K10: ='انسولين الطلاب والرضع'!J10 -> 0
A11: 8 | B11: انسولين بازل بنفيل | C11: خرطوشة | D11: ='انسولين الطلاب والرضع'!C11 -> 0 | E11: ='انسولين الطلاب والرضع'!D11 -> 0 | F11: ='انسولين الطلاب والرضع'!E11 -> 0 | G11: ='انسولين الطلاب والرضع'!F11 -> 0 | H11: ='انسولين الطلاب والرضع'!G11 -> 0 | I11: ='انسولين الطلاب والرضع'!H11 -> 0 | J11: ='انسولين الطلاب والرضع'!I11 -> 0 | K11: ='انسولين الطلاب والرضع'!J11 -> 0
A12: 9 | B12: انسولين كومب بنفيل | C12: خرطوشة | D12: ='انسولين الطلاب والرضع'!C12 -> 0 | E12: ='انسولين الطلاب والرضع'!D12 -> 0 | F12: ='انسولين الطلاب والرضع'!E12 -> 0 | G12: ='انسولين الطلاب والرضع'!F12 -> 0 | H12: ='انسولين الطلاب والرضع'!G12 -> 0 | I12: ='انسولين الطلاب والرضع'!H12 -> 0 | J12: ='انسولين الطلاب والرضع'!I12 -> 0 | K12: ='انسولين الطلاب والرضع'!J12 -> 0
A13: 10 | B13: انسولين مكستارد بنفيل | C13: خرطوشة | D13: ='انسولين الطلاب والرضع'!C13 -> 142 | E13: ='انسولين الطلاب والرضع'!D13 -> 14 | F13: ='انسولين الطلاب والرضع'!E13 -> 149 | G13: ='انسولين الطلاب والرضع'!F13 -> 19 | H13: ='انسولين الطلاب والرضع'!G13 -> 72 | I13: ='انسولين الطلاب والرضع'!H13 -> 12 | J13: ='انسولين الطلاب والرضع'!I13 -> 363 | K13: ='انسولين الطلاب والرضع'!J13 -> 45
A14: 11 | B14: انسولين اكترابيد بنفيل | C14: خرطوشة | D14: ='انسولين الطلاب والرضع'!C14 -> 258 | E14: ='انسولين الطلاب والرضع'!D14 -> 35 | F14: ='انسولين الطلاب والرضع'!E14 -> 232 | G14: ='انسولين الطلاب والرضع'!F14 -> 29 | H14: ='انسولين الطلاب والرضع'!G14 -> 306 | I14: ='انسولين الطلاب والرضع'!H14 -> 39 | J14: ='انسولين الطلاب والرضع'!I14 -> 796 | K14: ='انسولين الطلاب والرضع'!J14 -> 103
A15: 12 | B15: انسولين انسوليتارد بنفيل | C15: خرطوشة | D15: ='انسولين الطلاب والرضع'!C15 -> 15 | E15: ='انسولين الطلاب والرضع'!D15 -> 3 | F15: ='انسولين الطلاب والرضع'!E15 -> 16 | G15: ='انسولين الطلاب والرضع'!F15 -> 2 | H15: ='انسولين الطلاب والرضع'!G15 -> 29 | I15: ='انسولين الطلاب والرضع'!H15 -> 4 | J15: ='انسولين الطلاب والرضع'!I15 -> 60 | K15: ='انسولين الطلاب والرضع'!J15 -> 9
B16: اجمالى الانسولين فيال وخراطيش | D16: الهلال | F16: منطقة سوهاج | H16: منطقة جرجا | J16: الإجمالى
B17: انسولين 100 وحدة | C17: فيال | D17: =D4+D5+D6+D7+D9 -> 7 | E17: 2 | F17: 17 | G17: 5 | H17: =H4+H5+H6+H7+H9 -> 9 | I17: =I4+I5+I6+I7+I9 -> 3 | J17: =J4+J5+J6+J7+J8+J9 -> 844 | K17: =K4+K5+K6+K7+K9 -> 10
B18: انسولين بنفل | C18: خرطوشة | D18: =D8+D10+D11+D12+D13+D14+D15 -> 721 | E18: =E8+E10+E11+E12+E13+E14+E15 -> 139 | F18: 663 | G18: 102 | H18: 646 | I18: 115 | J18: =J10+J11+J12+J13+J14+J15 -> 1219 | K18: 356

Sheet تقارير الاصناف
A1: بيان بمنصرف صنفى اكس جاد وجادينيو عن شهر | D1: مارس-2020
A2: اسم الصنف | B2: الوحدة | C2: الكمية المنصرفة | D2: عدد الحالات | E2: اجمالى التكلفة
A3: اكسى جاد 125مجم | B3: شريط × 7قرص | C3: =الأصناف!C5 -> 0 | D3: =الأصناف!D5 -> 0 | E3: =الأصناف!E5 -> 0
A4: اكسى جاد 250مجم | B4: شريط × 7قرص | C4: =الأصناف!C6 -> 56 | D4: =الأصناف!D6 -> 4 | E4: =الأصناف!E6 -> 7466.69
A5: اكسى جاد 500مجم | B5: شريط × 7قرص | C5: =الأصناف!C7 -> 50 | D5: =الأصناف!D7 -> 4 | E5: =الأصناف!E7 -> 12916.63
A6: جادينيو90مجم | B6: ش×10ق | C6: =الأصناف!C13 -> 63 | D6: =الأصناف!D13 -> 11 | E6: =الأصناف!E13 -> 6225.03
A7: جادينيو180مجم | B7: ش×10ق | C7: =الأصناف!C14 -> 93 | D7: =الأصناف!D14 -> 23 | E7: =الأصناف!E14 -> 17714.26
A8: جادينيو360مجم | B8: ش×10ق | C8: =الأصناف!C15 -> 135 | D8: =الأصناف!D15 -> 30 | E8: =الأصناف!E15 -> 49821.3
A10: بيان بهرمون النمو الخاص بفرع سوهاج عن شهر | D10: مارس-2020
A11: اسم الصنف | B11: الوحدة | C11: الكمية المنصرفة | D11: عدد الحالات | E11: اجمالى التكلفة
A12: هرمون النمو | B12: فيال | C12: =الأصناف!C4 -> 1685 | D12: =الأصناف!D4 -> 123 | E12: =الأصناف!E4 -> 136485
A14: بيان بمنصرف ادوية الثلاثيميا عن شهر | D14: مارس-2020
B15: الصنف | C15: الوحدة | D15: الكمية المنصرفة | E15: التكلفة
B16: Desferal | C16: فيال | D16: =الأصناف!C8 -> 0 | E16: =الأصناف!E8 -> 0
B17: Kelfer | C17: ع×50ق | D17: =الأصناف!C10 -> 0 | E17: =الأصناف!E10 -> 0
A20: بيان بإحصائية الريبافيرين (400,200) مجم عن شهر | D20: مارس-2020
A21: ريبافيرين 200مجم | C21: ريبافيرين400 مجم
A22: عدد الشرائط | B22: التكلفة | C22: عدد الشرائط | D22: التكلفة
A23: =الأصناف!C11 -> 226 | B23: =الأصناف!E11 -> 888.18 | C23: =الأصناف!C12 -> 0 | D23: =الأصناف!E12 -> 0
